Department family,Entity,Date,Expense type,Expense area,Supplier,Transaction number,Amount
Department of Health,University Hospitals of Morecambe Bay NHS Foundation Trust,07-Jun-17,Managed Service Contract,Corporate,Carveti Partnership Ltd,100006891,69551.98
Department of Health,University Hospitals of Morecambe Bay NHS Foundation Trust,07-Jun-17,Managed Service Contract,Corporate,Carveti Partnership Ltd,100006893,35135.89
Department of Health,University Hospitals of Morecambe Bay NHS Foundation Trust,07-Jun-17,Managed Service Contract,Corporate,Carveti Partnership Ltd,100006895,35135.89
Department of Health,University Hospitals of Morecambe Bay NHS Foundation Trust,07-Jun-17,Managed Service Contract,Corporate,Carveti Partnership Ltd,100006896,69551.98
Department of Health,University Hospitals of Morecambe Bay NHS Foundation Trust,07-Jun-17,Drugs,Pharmacy,Healthcare At Home Limited,100006944,27120
Department of Health,University Hospitals of Morecambe Bay NHS Foundation Trust,07-Jun-17,Drugs,Pharmacy,Roche Products Ltd,100006954,41454.08
Department of Health,University Hospitals of Morecambe Bay NHS Foundation Trust,07-Jun-17,Drugs,Pharmacy,Roche Products Ltd,100006955,25643.57
Department of Health,University Hospitals of Morecambe Bay NHS Foundation Trust,07-Jun-17,Drugs,Pharmacy,Roche Products Ltd,100006956,42517.21
Department of Health,University Hospitals of Morecambe Bay NHS Foundation Trust,07-Jun-17,Drugs,Pharmacy,Roche Products Ltd,100006957,36294.98
Department of Health,University Hospitals of Morecambe Bay NHS Foundation Trust,07-Jun-17,Recharge Specialist Registrars,Trust Wide,The Pennine Acute Hospitals NHS Trust,100007173,-46542.53
Department of Health,University Hospitals of Morecambe Bay NHS Foundation Trust,07-Jun-17,Recharge Specialist Registrars,Trust Wide,The Pennine Acute Hospitals NHS Trust,100007174,332000
Department of Health,University Hospitals of Morecambe Bay NHS Foundation Trust,07-Jun-17,Recharge Specialist Registrars,Trust Wide,The Pennine Acute Hospitals NHS Trust,100007175,64000
Department of Health,University Hospitals of Morecambe Bay NHS Foundation Trust,07-Jun-17,Recharge Specialist Registrars,Trust Wide,The Pennine Acute Hospitals NHS Trust,100007176,88000
Department of Health,University Hospitals of Morecambe Bay NHS Foundation Trust,07-Jun-17,Recharge Specialist Registrars,Trust Wide,The Pennine Acute Hospitals NHS Trust,100007178,40000
Department of Health,University Hospitals of Morecambe Bay NHS Foundation Trust,07-Jun-17,Blood & Blood components contract,Core Clinical,NHS Blood & Transplant,100007187,47850.17
Department of Health,University Hospitals of Morecambe Bay NHS Foundation Trust,07-Jun-17,Blood & Blood components contract,Core Clinical,NHS Blood & Transplant,100007191,37270.25
Department of Health,University Hospitals of Morecambe Bay NHS Foundation Trust,07-Jun-17,NHS Product Sales,Trust Wide,NHS Supply Chain,100007245,159916.93
Department of Health,University Hospitals of Morecambe Bay NHS Foundation Trust,07-Jun-17,NHS Product Sales,Trust Wide,NHS Supply Chain,100007246,164315.39
Department of Health,University Hospitals of Morecambe Bay NHS Foundation Trust,07-Jun-17,Maintenance Contract Management,Trust Wide,Leaseguard Group Ltd,100007456,33024.06
Department of Health,University Hospitals of Morecambe Bay NHS Foundation Trust,07-Jun-17,Payroll Services,Trust Wide,NHS Shared Business Service Ltd,100007460,29739.2
Department of Health,University Hospitals of Morecambe Bay NHS Foundation Trust,07-Jun-17,NHS Product Sales,Trust Wide,NHS Supply Chain,100007463,140131.95
Department of Health,University Hospitals of Morecambe Bay NHS Foundation Trust,07-Jun-17,Rates,Estates & Facilities,Lancaster City Council,100007575,47900
Department of Health,University Hospitals of Morecambe Bay NHS Foundation Trust,07-Jun-17,Rates,Estates & Facilities,South Lakeland District Council,100007604,29780
Department of Health,University Hospitals of Morecambe Bay NHS Foundation Trust,07-Jun-17,Rates,Estates & Facilities,Borough Of Barrow-In-Furness,100007630,50844
Department of Health,University Hospitals of Morecambe Bay NHS Foundation Trust,07-Jun-17,Pacemakers,Cardiac Centre,Medtronic Ltd,100007718,28800
Department of Health,University Hospitals of Morecambe Bay NHS Foundation Trust,14-Jun-17,Waiting List (Additional Capacity),Surgery,BMI Healthcare Ltd,100000167,74195.59
Department of Health,University Hospitals of Morecambe Bay NHS Foundation Trust,14-Jun-17,Electtrical Services,Capital Services,Chris Bowker Limited,100000223,27577.73
Department of Health,University Hospitals of Morecambe Bay NHS Foundation Trust,14-Jun-17,Electtrical Services,Capital Services,Chris Bowker Limited,100000224,26323.9
Department of Health,University Hospitals of Morecambe Bay NHS Foundation Trust,14-Jun-17,Speech & Language Therapy Services,Core Clinical,Cumbria Partnership NHS Foundation Trust,100002128,30800.66
Department of Health,University Hospitals of Morecambe Bay NHS Foundation Trust,14-Jun-17,Waiting List (Additional Capacity),Surgery,BMI Healthcare Ltd,100003684,47472.9
Department of Health,University Hospitals of Morecambe Bay NHS Foundation Trust,14-Jun-17,Drugs,Pharmacy,Lloyds Pharmacy Limited,100008185,563794.03
Department of Health,University Hospitals of Morecambe Bay NHS Foundation Trust,14-Jun-17,Waiting List (Additional Capacity),Surgery,Spire Healthcare Ltd,100008256,95167.17
Department of Health,University Hospitals of Morecambe Bay NHS Foundation Trust,14-Jun-17,Drugs,Pharmacy,Janssen-Cilag Ltd,100008429,30010.64
Department of Health,University Hospitals of Morecambe Bay NHS Foundation Trust,14-Jun-17,Maintenance Contract,Endoscopy,NHS Supply Chain,100008447,48012.3
Department of Health,University Hospitals of Morecambe Bay NHS Foundation Trust,14-Jun-17,Waiting List (Additional Capacity),Surgery,BMI Healthcare Ltd,100008510,166119.18
Department of Health,University Hospitals of Morecambe Bay NHS Foundation Trust,14-Jun-17,Drugs,Pharmacy,AAH Pharmaceuticals Ltd,100009123,247397.55
Department of Health,University Hospitals of Morecambe Bay NHS Foundation Trust,14-Jun-17,Drugs,Pharmacy,AAH Pharmaceuticals Ltd,100009125,304771.69
Department of Health,University Hospitals of Morecambe Bay NHS Foundation Trust,14-Jun-17,Drugs,Pharmacy,AAH Pharmaceuticals Ltd,100009130,249781.33
Department of Health,University Hospitals of Morecambe Bay NHS Foundation Trust,14-Jun-17,Disbursements for Payroll Week 5 to Week 8,Trust Wide,Retinue Solutions Limited,100009324,195536.33
Department of Health,University Hospitals of Morecambe Bay NHS Foundation Trust,14-Jun-17,Drugs,Pharmacy,Roche Products Ltd,100009450,73673.45
Department of Health,University Hospitals of Morecambe Bay NHS Foundation Trust,14-Jun-17,Building Services,Capital Services,F Parkinson Ltd,100009487,61315.45
Department of Health,University Hospitals of Morecambe Bay NHS Foundation Trust,14-Jun-17,Rates,Estates & Facilities,Borough Of Barrow-In-Furness,100009691,108042.54
Department of Health,University Hospitals of Morecambe Bay NHS Foundation Trust,15-Jun-17,Boiler House Scheme,Capital Services,Chris Bowker Limited,100001341,160244.83
Department of Health,University Hospitals of Morecambe Bay NHS Foundation Trust,21-Jun-17,Orthotics Service,Trust Wide,Crispin Orthotics Ltd,100004725,29566.14
Department of Health,University Hospitals of Morecambe Bay NHS Foundation Trust,21-Jun-17,Agency Medical Staff - Management Costs,Trust Wide,Retinue Solutions Limited,100006747,31375.53
Department of Health,University Hospitals of Morecambe Bay NHS Foundation Trust,21-Jun-17,"Agency Nurses, Midwives & ODPs",Trust Wide,Retinue Solutions Limited,100006749,65313.48
Department of Health,University Hospitals of Morecambe Bay NHS Foundation Trust,21-Jun-17,Speech & Language Therapy Services,Core Clinical,Cumbria Partnership NHS Foundation Trust,100009399,30800.66
Department of Health,University Hospitals of Morecambe Bay NHS Foundation Trust,21-Jun-17,Laundry,Estates & Facilities,Berendsen UK Ltd,100009807,24261.11
Department of Health,University Hospitals of Morecambe Bay NHS Foundation Trust,21-Jun-17,Electricity,Estates & Facilities,NPower,100009955,29321.96
Department of Health,University Hospitals of Morecambe Bay NHS Foundation Trust,21-Jun-17,Waiting List (Additional Capacity),Surgery,DMC Healthcare Ltd,100010191,62595
Department of Health,University Hospitals of Morecambe Bay NHS Foundation Trust,21-Jun-17,Drugs,Pharmacy,Roche Products Ltd,100010210,39683.71
Department of Health,University Hospitals of Morecambe Bay NHS Foundation Trust,21-Jun-17,"Agency Nurses, Midwives & ODPs",Trust Wide,Retinue Solutions Limited,100010396,75719.38
Department of Health,University Hospitals of Morecambe Bay NHS Foundation Trust,21-Jun-17,"Agency Nurses, Midwives & ODPs",Trust Wide,Retinue Solutions Limited,100010440,66860.16
Department of Health,University Hospitals of Morecambe Bay NHS Foundation Trust,21-Jun-17,"Agency Nurses, Midwives & ODPs",Trust Wide,Retinue Solutions Limited,100010540,68899.23
Department of Health,University Hospitals of Morecambe Bay NHS Foundation Trust,21-Jun-17,"Agency Nurses, Midwives & ODPs",Trust Wide,Retinue Solutions Limited,100010605,66399.3
Department of Health,University Hospitals of Morecambe Bay NHS Foundation Trust,21-Jun-17,CT & MRI Scans - Reporting,Radiology,Telemedicine Clinic Ltd,100010751,27429.04
Department of Health,University Hospitals of Morecambe Bay NHS Foundation Trust,21-Jun-17,Electricity,Estates & Facilities,NPower,100010754,75319.9
Department of Health,University Hospitals of Morecambe Bay NHS Foundation Trust,21-Jun-17,Electricity,Estates & Facilities,NPower,100010763,64588.33
Department of Health,University Hospitals of Morecambe Bay NHS Foundation Trust,21-Jun-17,Orthotics Service,Trust Wide,Crispin Orthotics Ltd,100010890,29178.11
Department of Health,University Hospitals of Morecambe Bay NHS Foundation Trust,21-Jun-17,Aqua Membership Fee,Trust Board,Salford Royal NHS Foundation Trust,100010930,40000
Department of Health,University Hospitals of Morecambe Bay NHS Foundation Trust,21-Jun-17,NHS Product Sales,Trust Wide,NHS Supply Chain,100010993,97053.73
Department of Health,University Hospitals of Morecambe Bay NHS Foundation Trust,21-Jun-17,Rent,Medical Records,Mapeley Steps Ltd,100011009,35810.7
Department of Health,University Hospitals of Morecambe Bay NHS Foundation Trust,23-Jun-17,Maintenance Contract,Information Technology,Healthcare Software Systems,100011452,25801.46
Department of Health,University Hospitals of Morecambe Bay NHS Foundation Trust,23-Jun-17,Maintenance Contract,Endoscopy,Clearview Endoscopy Ltd,100011505,51222
Department of Health,University Hospitals of Morecambe Bay NHS Foundation Trust,23-Jun-17,Speech & Language Therapy Services,Core Clinical,Cumbria Partnership NHS Foundation Trust,100011618,30800.66
Department of Health,University Hospitals of Morecambe Bay NHS Foundation Trust,28-Jun-17,"Agency Nurses, Midwives & ODPs",Trust Wide,Retinue Solutions Limited,100006732,99664.92
Department of Health,University Hospitals of Morecambe Bay NHS Foundation Trust,28-Jun-17,Medical Equipment,Cardiac Centre,Philips Healthcare,100009545,459252.41
Department of Health,University Hospitals of Morecambe Bay NHS Foundation Trust,28-Jun-17,Agency Medical Staff - Management Costs,Trust Wide,Retinue Solutions Limited,100010514,24740.44
Department of Health,University Hospitals of Morecambe Bay NHS Foundation Trust,28-Jun-17,CNST Premium,Corporate,NHS Litigation Authority,100010740,1123073.5
Department of Health,University Hospitals of Morecambe Bay NHS Foundation Trust,28-Jun-17,NHS Product Sales,Trust Wide,NHS Supply Chain,100010994,144623.81
Department of Health,University Hospitals of Morecambe Bay NHS Foundation Trust,28-Jun-17,IT System - Monthly charge,Information Technology,Sectra Limited,100012495,31295.38
Department of Health,University Hospitals of Morecambe Bay NHS Foundation Trust,28-Jun-17,Beds Managed Contract,Trust Wide,Arjo Huntleigh Ltd,100012543,44668.1
